bitfinex/quotes_ETHUSD_20260314
["timestamp","ask_amount","ask_price","bid_price","bid_amount"]
[1773447723849,0.46124099,2094.2,2093.7,0.53596751]
[1773447724050,0.46124099,2094.2,2093.7,0.48820518]
[1773447724377,0.002,2094.0,2093.7,0.48820518]
[1773447724678,0.002,2094.0,2093.8,1.19400133]
[1773447727983,0.46324099,2094.2,2093.9,0.48820518]
[1773447728160,0.46324099,2094.2,2093.8,1.19400133]
[1773447731038,0.46124099,2094.1,2093.8,1.19400133]
[1773447732167,0.46124099,2094.1,2093.7,1.68224797]
[1773447732573,0.46124099,2094.1,2093.8,0.53596523]
[1773447734093,0.46124099,2094.1,2093.8,1.68220511]
[1773447736996,0.002,2094.2,2093.8,1.19399993]
[1773447737213,0.002,2094.2,2093.9,0.48820518]
[1773447737567,0.46324099,2094.2,2093.9,0.48820518]
[1773447737762,0.002,2094.2,2094.0,0.53596067]
[1773447738066,0.002,2094.2,2094.0,0.48820518]
[1773447738562,0.002,2094.2,2094.0,1.19387693]
[1773447738769,2.00095705,2094.7,2094.1,0.53595839]
[1773447738981,0.002,2094.5,2094.1,0.53595839]
[1773447739193,0.002,2094.5,2094.2,0.48820518]
[1773447740700,0.002,2094.5,2094.3,1.68192145]
[1773447742100,0.002,2094.5,2094.3,0.48820518]
[1773447744395,0.002,2094.5,2094.3,1.6819165]
[1773447744572,0.002,2094.5,2094.3,0.48820518]
[1773447745101,0.002,2094.5,2094.4,0.49385826]
[1773447745584,0.5011695,2094.5,2094.2,1.19372644]
[1773447750689,0.5011695,2094.5,2094.2,1.6875847]
[1773447751408,0.002,2094.5,2094.3,0.49385826]
[1773447752006,0.002,2094.5,2094.3,1.68756908]
[1773447752304,0.002,2094.5,2094.3,0.49385826]
[1773447752690,0.002,2094.5,2094.2,1.19472644]
[1773447752890,0.5011695,2094.5,2094.2,1.19472644]
[1773447753091,0.002,2094.5,2094.3,0.49385826]
[1773447754510,0.5011695,2094.5,2094.2,1.19472644]
[1773447755609,0.5011695,2094.5,2094.0,0.001]
[1773447755809,0.5011695,2094.5,2094.0,1.19488554]
[1773447756108,0.5011695,2094.5,2094.1,0.54161147]
[1773447756519,0.4991695,2095.1,2094.3,0.49385826]
[1773447756689,0.4991695,2095.1,2094.3,0.54160691]
[1773447756887,0.4991695,2095.1,2094.3,0.49385826]
[1773447759697,0.4991695,2094.9,2094.3,0.49385826]
[1773447759892,0.4991695,2094.9,2094.3,1.19369]
[1773447760086,0.4991695,2094.9,2094.4,0.49385826]
[1773447760906,0.4991695,2094.9,2094.2,0.49385826]
[1773447761209,0.2491695,2094.9,2094.2,0.49385826]
[1773447761708,1.19343135,2094.8,2094.2,1.68759471]
[1773447761915,0.4991695,2094.7,2094.3,0.49385826]
[1773447762327,1.19343135,2094.8,2094.3,0.49385826]
[1773447762510,1.69260085,2094.8,2094.3,0.49385826]
[1773447763095,1.69260085,2094.8,2094.0,1.19488326]
[1773447763096,0.4991695,2094.7,2094.0,1.19488326]
[1773447763296,0.4991695,2094.7,2094.0,0.001]
[1773447763614,0.4991695,2094.7,2094.0,1.68872057]
[1773447763806,1.1935453,2094.6,2094.1,0.49385826]
[1773447764118,0.4991695,2094.5,2094.1,0.49385826]
[1773447765316,0.4991695,2094.5,2094.0,0.001]
[1773447766222,1.690607,2094.4,2094.3,0.001]
[1773447767520,0.49694772,2094.4,2094.3,0.001]
[1773447767897,0.49694772,2094.4,2094.0,0.001]
[1773447768222,0.49694772,2094.2,2093.8,0.001]
[1773447768826,0.49694772,2093.9,2093.4,0.001]
[1773447770130,0.49694772,2093.7,2093.4,0.001]
[1773447772645,1.19411539,2093.6,2093.4,0.001]
[1773447772809,0.46344457,2093.5,2093.4,0.001]
[1773447773832,0.46344457,2093.7,2093.4,0.001]
[1773447777240,1.65755996,2093.6,2093.4,0.001]
[1773447778039,0.46344457,2093.6,2093.4,0.001]
[1773447778634,1.19410572,2093.7,2093.4,0.49604913]
[1773447778836,1.65749344,2093.8,2093.4,0.49604913]
[1773447780730,1.65749344,2093.8,2093.6,0.001]
[1773447781638,0.46344457,2093.7,2093.6,0.001]
[1773447781840,0.46344457,2093.7,2093.4,0.001]
[1773447785248,1.65755996,2093.6,2093.4,0.001]
[1773447787127,1.19410209,2093.7,2093.4,0.49604913]
[1773447787658,1.65747199,2093.8,2093.4,0.49604913]
[1773447789051,1.19405709,2093.8,2093.4,0.49604913]
[1773447789343,0.46344457,2093.7,2093.4,0.49604913]
[1773447792126,0.46344457,2093.9,2093.3,0.001]
[1773447792328,0.46344457,2093.9,2093.3,0.49604913]
[1773447793156,0.46344457,2093.9,2093.3,0.001]
[1773447794246,0.46344457,2093.7,2093.3,0.001]
[1773447794650,0.46344457,2093.7,2093.6,0.001]
[1773447797253,1.65750293,2093.7,2093.6,0.001]
[1773447804480,0.45250599,2093.9,2093.6,0.001]
[1773447804767,5.23008942,2094.0,2093.6,0.48418593]
[1773447805073,0.45250599,2093.9,2093.6,0.001]
[1773447807448,0.45450599,2093.7,2093.6,0.001]
[1773447810183,1.64856435,2093.7,2093.6,0.001]
[1773447818193,1.19605836,2093.7,2093.6,0.001]
[1773447818789,1.19605836,2093.7,2093.6,0.48418593]
[1773447819486,0.002,2093.7,2093.6,0.48418593]
[1773447819790,1.19402247,2093.8,2093.7,0.48318593]
[1773447820579,4.77780629,2093.9,2093.7,0.48318593]
[1773447821484,0.45250599,2093.8,2093.4,0.48418593]
[1773447821788,0.45250599,2093.8,2093.4,0.001]
[1773447824789,0.48511629,2093.6,2093.0,1e-08]
[1773447825084,0.49999999,2093.4,2092.9,0.001]
[1773447826272,0.49999999,2093.4,2092.9,1.19551119]
[1773447826662,0.49999999,2093.4,2092.9,0.001]
[1773447827991,1.19428653,2093.3,2092.9,0.001]
[1773447829591,1.69428652,2093.3,2092.9,0.001]
[1773447833199,1.69428652,2093.3,2093.1,0.001]
[1773447833899,1.69628652,2093.3,2093.1,0.001]
[1773447838505,0.49999999,2093.2,2093.1,0.001]
[1773447845601,0.002,2093.3,2093.1,0.001]
[1773447848618,0.50199999,2093.3,2093.1,0.001]
[1773447848921,0.49949999,2093.2,2092.9,0.001]
[1773447849104,0.49949999,2093.2,2092.8,0.001]
[1773447849294,0.49909999,2093.0,2092.6,0.001]
[1773447849817,0.49909999,2093.0,2092.6,0.0002]
[1773447850023,0.49909999,2093.0,2092.6,0.00200001]
[1773447851524,1.19451478,2092.9,2092.6,0.00200001]
[1773447852696,1.69361477,2092.9,2092.6,0.00200001]
[1773447853920,0.49909999,2092.8,2092.6,0.0002]
[1773447854098,0.49909999,2092.8,2092.5,0.001]
[1773447855728,1.69361477,2092.9,2092.6,0.00180001]
[1773447856504,1.19434358,2093.2,2092.6,0.00180001]
[1773447857009,1.69344357,2093.2,2092.6,0.00180001]
[1773447857727,4.77937435,2093.3,2092.6,0.00180001]
[1773447857728,1.19628809,2093.3,2092.6,0.00180001]
[1773447858229,1.19630369,2093.3,2092.6,0.00180001]
[1773447858604,1.19630369,2093.3,2092.8,0.00351556]
[1773447858827,0.002,2093.0,2092.8,0.00351556]
[1773447861235,0.002,2093.0,2092.9,0.00351556]
[1773447861804,0.50024221,2093.2,2092.7,0.04878515]
[1773447862004,0.50024221,2093.2,2092.7,0.001]
[1773447862459,0.50024221,2093.2,2092.5,0.001]
[1773447863525,0.49824221,2093.0,2092.5,0.001]
[1773447865125,0.49824221,2093.0,2092.5,0.00451556]
[1773447865722,1.69275699,2092.9,2092.5,0.00451556]
[1773447865935,1.19451478,2092.9,2092.6,0.00351556]
[1773447868135,1.19445527,2093.1,2092.6,0.00351556]
[1773447868330,1.69269748,2093.1,2092.6,0.00351556]
[1773447868729,0.49824221,2093.0,2092.6,0.00351556]
[1773447870334,1.6927051,2093.0,2092.6,0.00351556]
[1773447870922,0.49824221,2093.1,2092.6,0.00351556]
[1773447872643,0.49824221,2093.0,2092.8,0.001]
[1773447874645,1.69275656,2093.0,2092.8,0.001]
[1773447875339,1.69522406,2093.0,2092.8,0.001]
[1773447876329,0.50070971,2093.0,2092.8,0.001]
[1773447880448,1.19645037,2093.1,2092.9,0.00281596]
[1773447880449,0.002,2093.1,2092.9,0.00281596]
[1773447881057,0.002,2093.1,2092.8,0.00381596]
[1773447882053,0.002,2093.1,2092.9,0.00281596]
[1773447882960,0.002,2093.2,2092.9,0.00281596]
[1773447884866,0.002,2093.2,2093.0,0.00281596]
[1773447885765,0.002,2093.3,2093.0,0.00081596]
[1773447885966,0.50159201,2093.3,2093.0,0.00081596]
[1773447886167,0.002,2093.1,2093.0,0.00081596]
[1773447890169,0.002,2093.3,2093.0,0.00081596]
[1773447890389,0.002,2093.3,2092.9,0.04878059]
[1773447890390,0.49959201,2093.2,2092.9,0.04878059]
[1773447890538,0.50159201,2093.3,2092.9,0.001]
[1773447890870,0.50159201,2093.3,2093.0,0.00081596]
[1773447891072,0.50159201,2093.3,2092.9,0.001]
[1773447894638,0.49959201,2093.1,2092.5,0.001]
[1773447895166,1.94313304,2093.2,2092.3,0.001]
[1773447895167,0.49909201,2092.8,2092.3,0.001]
[1773447895547,0.49909201,2092.8,2092.3,1.19585526]
[1773447895752,0.49909201,2092.8,2092.3,1.24546551]
[1773447896151,0.49909201,2092.8,2092.3,0.04879429]
[1773447896354,0.49909201,2092.8,2092.3,0.001]
[1773447896555,0.49909201,2092.8,2092.3,1.19585373]
[1773447897170,0.49909201,2092.6,2092.3,0.001]
[1773447898375,0.49909201,2092.6,2092.5,0.001]
[1773447900747,1.19468603,2092.6,2092.3,0.001]
[1773447900952,0.49909201,2092.5,2092.3,0.001]
[1773447905160,0.49909201,2092.7,2092.3,0.001]
[1773447906485,0.49818066,2092.2,2091.8,0.001]
[1773447906689,0.49768066,2092.0,2091.8,0.001]
[1773447906887,1.19497155,2092.1,2091.6,0.001]
[1773447906888,0.49768066,2091.8,2091.6,0.001]
[1773447907060,0.49768066,2091.8,2091.3,0.12038219]
[1773447908078,0.49768066,2091.8,2091.1,1.20016988]
[1773447908883,0.49768066,2091.6,2091.1,0.00463866]
[1773447910810,0.49768066,2091.5,2091.1,0.00463866]
[1773447912011,0.49768066,2091.5,2090.9,1.20024955]
[1773447912922,0.49718066,2091.3,2090.9,1.20024955]
[1773447913425,0.49718066,2091.3,2091.0,0.001]
[1773447914990,0.49718066,2091.2,2090.5,0.23455525]
[1773447915185,0.49718066,2091.2,2090.5,1.20152297]
[1773447915715,0.49718066,2091.2,2090.5,0.00563866]
[1773447916119,0.49718066,2091.2,2090.5,0.0534741]
[1773447916426,0.49718066,2091.2,2090.5,0.00563866]
[1773447917232,0.49718066,2091.0,2090.5,0.00563866]
[1773447917524,1.69270258,2091.2,2090.5,0.00563866]
[1773447917689,1.19552192,2091.2,2090.6,0.00563866]
[1773447917890,0.49718066,2091.1,2090.6,0.00563866]
[1773447920040,1.69272659,2091.1,2090.6,0.00563866]
[1773447921048,0.49718066,2091.0,2090.6,0.00563866]
[1773447921342,0.49718066,2091.0,2090.4,1.20153595]
[1773447921524,0.49718066,2090.9,2090.4,1.20153595]
[1773447924539,1.19568028,2090.9,2090.4,1.20153595]
[1773447924746,0.49718066,2090.8,2090.4,1.20153595]
[1773447925247,1.69281968,2091.0,2090.5,0.00563866]
[1773447925832,1.69281968,2091.0,2090.6,0.0011]
[1773447926036,1.69281968,2091.0,2090.6,0.00673866]
[1773447926238,0.49818066,2090.9,2090.6,0.00673866]
[1773447926842,1.69385328,2090.9,2090.6,0.00673866]
[1773447927146,0.49718066,2090.8,2090.6,0.0011]
[1773447929238,0.49718066,2090.7,2090.6,0.0011]
[1773447929443,0.49718066,2090.7,2090.4,0.0011]
[1773447929842,0.49718066,2090.7,2090.4,1.19703551]
[1773447930920,0.49718066,2090.7,2090.4,0.0011]
[1773447931353,0.49718066,2090.7,2090.4,1.19701595]
[1773447931649,0.49661466,2090.6,2090.4,0.0011]
[1773447933556,0.49661466,2090.5,2090.1,8.54478801]
[1773447934054,0.49661466,2090.4,2089.8,1.19624215]
[1773447934242,0.49661466,2090.4,2089.8,1.21266573]
[1773447934631,0.49661466,2090.4,2089.9,0.06427275]
[1773447934960,0.49661466,2090.4,2090.0,0.01642358]
[1773447935453,0.49661466,2090.4,2089.9,0.04784917]
[1773447935757,0.49661466,2090.3,2089.8,1.21266573]
[1773447936626,0.49661466,2090.3,2089.7,1.21276755]
[1773447937377,0.75045489,2090.3,2089.6,1.19635342]
[1773447937656,0.49661466,2089.9,2089.4,1.21289958]
[1773447938955,0.49661466,2090.1,2089.6,0.01752358]
[1773447939157,0.49661466,2090.5,2089.8,0.01642358]
[1773447939455,0.001,2090.3,2089.9,0.01642358]
[1773447939657,1.69239021,2090.7,2089.9,0.01642358]
[1773447939857,0.49661466,2090.7,2090.1,0.01542358]
[1773447940363,0.49661466,2090.7,2089.9,4.78468899]
[1773447940364,0.49661466,2090.6,2089.9,1.21161568]
[1773447940536,0.49661466,2090.5,2089.9,1.1961921]
[1773447942092,0.49661466,2090.3,2089.9,1.1961921]
[1773447942456,0.49661466,2090.5,2090.0,0.00908113]
[1773447945876,0.49545943,2090.4,2090.0,1.19614469]
[1773447946253,0.49545943,2090.4,2090.0,1.20522582]
[1773447948081,0.49545943,2090.6,2090.1,0.00908113]
[1773447949076,0.49545943,2090.6,2090.0,1.19614469]
[1773447949985,0.49545943,2090.6,2090.0,1.20522582]
[1773447950389,0.49545943,2090.5,2089.9,4.78487423]
[1773447950564,0.49545943,2090.5,2089.9,4.79395536]
[1773447953084,0.49545943,2090.5,2090.3,0.0011]
[1773447953592,0.49645943,2090.4,2090.3,0.0011]
[1773447962125,0.49228979,2090.8,2090.5,0.01829036]
[1773447962627,0.49228979,2090.8,2090.4,1.19594336]
[1773447963420,0.49228979,2090.8,2090.4,1.21423372]
[1773447964214,1.19548926,2091.2,2090.6,0.01829036]
[1773447964417,0.49228979,2091.1,2090.6,0.01829036]
[1773447967829,0.49228979,2091.1,2090.7,1.19577175]
[1773447970218,0.49228979,2091.1,2090.7,1.21406211]
[1773447971228,0.49228979,2091.1,2090.5,0.01829036]
[1773447971400,0.49228979,2091.0,2090.5,4.80173096]
[1773447972404,0.49228979,2091.0,2090.4,4.78366742]
[1773447972931,0.49228979,2091.0,2090.4,4.80195778]
[1773447973721,0.49228979,2091.0,2090.3,0.0011]
[1773447974421,0.49228979,2090.8,2090.3,0.0011]
[1773447976627,0.49228979,2090.6,2090.3,0.0011]
[1773447978924,0.49228979,2090.4,2090.3,0.0011]
[1773447984338,1.68823315,2090.4,2090.3,0.0011]
[1773447984549,0.49228979,2090.4,2090.3,0.0011]
[1773447985362,0.49228979,2090.4,2090.0,1.19727088]
[1773447986242,0.49228979,2090.4,2090.0,1.21666124]
[1773447988261,0.49030481,2090.3,2090.0,0.02049036]
[1773447988647,0.49030481,2090.3,2090.0,0.0011]
[1773447990134,0.49030481,2090.2,2089.8,0.0011]
[1773447991777,0.49030481,2090.2,2090.0,0.0011]
[1773447992275,0.49414199,2090.1,2090.0,0.0011]
[1773447994348,1.690257,2090.1,2090.0,0.0011]
[1773447994869,0.49414199,2090.1,2090.0,0.0011]
[1773447995435,0.49359199,2090.0,2089.8,0.0011]
[1773447995737,0.49359199,2090.0,2089.7,0.0011]
[1773447995738,0.49359199,2090.0,2089.6,0.0011]
[1773447996468,0.49359199,2089.8,2089.6,0.0011]
[1773447997252,0.49359199,2090.0,2089.6,0.013916]
[1773447998070,1.19615857,2090.1,2089.6,0.013916]
[1773447999368,0.49359199,2090.1,2089.6,1.21027028]
[1773447999545,0.49359199,2090.1,2089.5,0.04785833]
[1773447999746,0.49359199,2090.1,2089.6,1.19639188]
[1773448000751,0.49999999,2090.0,2089.4,0.0011]
[1773448001061,0.49999999,2090.0,2089.4,1.1975733]
[1773448002568,0.49999999,2089.8,2089.4,0.0011]
[1773448004372,0.49999999,2089.8,2089.6,0.0011]
[1773448004758,0.49999999,2089.7,2089.4,0.0011]
[1773448006974,0.49999999,2089.6,2089.4,0.0011]
[1773448007468,0.49999999,2089.6,2089.1,1.19778756]
[1773448007975,0.49999999,2089.6,2089.2,0.00920924]
[1773448009470,0.49539538,2089.5,2089.2,0.00920924]
[1773448009659,0.49539538,2089.5,2089.1,1.19778756]
[1773448009994,0.49539538,2089.5,2089.1,1.2069968]
[1773448012582,1.6934864,2089.5,2089.0,2.93471865]
[1773448012747,0.5,2089.4,2089.0,2.93471865]
[1773448012953,0.5,2089.4,2088.5,6.61338584]
[1773448013151,0.5,2089.4,2088.6,1.19697404]
[1773448014685,0.5,2089.3,2088.6,1.19697404]
[1773448014885,0.5,2089.0,2088.5,1.3222796]
[1773448015085,0.5,2089.0,2088.4,4.78812544]
[1773448015298,0.5,2089.0,2088.5,1.1969974]
[1773448015459,0.5,2089.0,2088.2,1.19720333]
[1773448015797,1.1965433,2089.4,2088.2,1.19720333]
[1773448015798,0.5,2089.3,2088.3,0.79879466]
[1773448015980,0.5,2089.3,2088.4,1.679]
[1773448016484,0.5,2089.5,2088.5,0.75090882]
[1773448016689,1.19657301,2089.3,2088.5,1.19703136]
[1773448016888,0.49945,2089.2,2088.8,0.0011]
[1773448017093,0.49945,2089.2,2088.6,0.0011]
[1773448017259,0.49945,2089.1,2088.4,2.87606584]
[1773448017460,0.49945,2089.1,2089.0,0.0011]
[1773448017655,0.49945,2089.1,2088.5,0.0011]
[1773448017852,0.49945,2089.1,2088.7,0.0011]
[1773448018581,0.49945,2089.1,2088.2,1.19720333]
[1773448018781,0.5,2088.9,2088.2,1.19720333]
[1773448019870,0.5,2088.9,2088.3,0.04788584]
[1773448020210,0.5,2088.9,2088.2,1.19720333]
[1773448020783,1.69672883,2089.1,2088.2,1.19720333]
[1773448020986,1.69672883,2089.1,2088.3,0.04788584]
[1773448021668,0.5,2089.0,2088.3,0.04788584]
[1773448022787,1.19672883,2089.1,2088.3,0.04788584]
[1773448022992,1.69672883,2089.1,2088.4,1.19708868]
[1773448023193,1.69672883,2089.1,2088.5,0.04788125]
[1773448024769,1.69659526,2089.3,2088.5,0.79879007]
[1773448024969,0.5,2089.2,2088.6,1.19697404]
[1773448025491,0.5,2089.2,2088.7,0.04787666]
[1773448027292,0.5,2089.2,2088.4,4.78809974]
[1773448028990,1.69663205,2089.2,2088.4,4.78809974]
[1773448029177,1.69663205,2089.2,2088.2,4.78835472]
[1773448029375,0.5,2089.1,2088.2,4.78835472]
[1773448029891,0.5,2089.1,2088.3,1.737]
[1773448030089,0.5,2089.0,2088.3,1.737]
[1773448030388,0.5,2089.0,2088.6,0.0011]
[1773448030692,0.501,2089.0,2088.6,0.0011]
[1773448031489,0.5,2088.9,2088.6,0.0011]
[1773448035473,0.5,2088.8,2088.6,0.0011]
[1773448036178,0.5,2088.8,2088.3,6.52535472]
[1773448036383,0.5,2088.8,2088.4,1.19708868]
[1773448039804,0.5,2088.7,2088.3,2.93409915]
[1773448041301,0.5,2088.7,2088.3,1.19709915]
[1773448041507,0.5,2088.7,2088.2,1.19715776]
[1773448042907,0.5,2088.6,2088.1,4.7900206]
[1773448043408,0.5,2088.9,2088.1,4.7900206]
[1773448043705,0.5,2088.9,2088.2,0.04788813]
[1773448043907,0.5,2088.9,2088.6,0.0011]
[1773448044494,0.501,2089.4,2088.6,0.0011]
[1773448044699,1.69755001,2089.4,2088.7,1.19691674]
[1773448045084,0.501,2089.4,2088.7,1.19691674]
[1773448045303,0.001,2089.4,2088.7,1.19691674]
[1773448047686,0.501,2089.4,2088.7,1.19691674]
[1773448049913,0.5,2089.3,2088.7,1.19691674]
[1773448050102,0.5,2089.3,2088.6,4.78876696]
[1773448050103,0.5,2089.3,2088.6,0.0011]
[1773448050287,0.5,2089.3,2088.4,1.19814337]
[1773448051598,0.5,2089.1,2088.4,1.19707723]
[1773448051999,0.5,2088.9,2088.4,1.19707723]
[1773448052200,0.5,2088.9,2088.4,0.99707723]
[1773448052399,0.5,2088.9,2088.3,2.94614006]
[1773448052612,0.5,2088.9,2088.3,1.19714006]
[1773448052912,0.5,2088.9,2088.1,1.39832955]
[1773448054119,0.49035277,2088.7,2088.1,1.39832955]
[1773448054488,0.49035277,2088.7,2088.1,1.39830378]
[1773448056516,0.49035277,2088.8,2088.1,1.19830378]
[1773448056718,0.49035277,2088.8,2088.2,0.20920923]
[1773448057095,0.49035277,2088.8,2088.3,0.0011]
[1773448057618,0.49035277,2088.6,2088.3,0.0011]
[1773448060111,0.49035277,2088.5,2088.1,0.0011]
[1773448060292,0.49035277,2088.5,2088.1,0.21140923]
[1773448062321,1.68738681,2088.5,2088.1,1.40864946]
[1773448063822,1.19703404,2088.5,2088.1,1.40864946]
[1773448064024,0.49035277,2088.4,2088.1,1.40864946]
[1773448067625,0.49035277,2088.4,2088.1,1.19834023]
[1773448069829,0.49035277,2088.4,2088.3,0.0011]
[1773448070008,0.49710287,2088.3,2088.0,1.19841248]
[1773448070215,0.49710287,2088.3,2088.0,0.0011]
[1773448070413,0.49710287,2088.3,2087.5,1.40900611]
[1773448070608,0.49710287,2088.3,2087.6,0.21140923]
[1773448072628,0.49710287,2088.3,2087.5,1.24550107]
[1773448072837,0.49567837,2088.1,2087.5,1.4569103]
[1773448075111,0.49567837,2088.0,2087.5,1.4569103]
[1773448076134,0.49567837,2088.3,2087.6,0.21140923]
[1773448076334,0.49567837,2088.3,2087.8,0.21140923]
[1773448077339,0.49567837,2088.3,2087.9,1.40878458]
[1773448077514,0.49567837,2088.3,2088.0,0.21140923]
[1773448077714,0.49567837,2088.5,2088.0,0.21140923]
[1773448079625,0.49567837,2088.4,2088.0,1.40868223]
[1773448080514,0.49567837,2088.5,2088.1,0.21140923]
[1773448080718,1.19792608,2088.7,2088.1,0.21140923]
[1773448080913,0.49567837,2088.6,2088.1,0.21140923]
[1773448081836,0.49567837,2088.6,2088.2,1.40861256]
[1773448082232,0.49567837,2088.5,2088.2,0.21140923]
[1773448082741,0.49567837,2088.5,2088.2,0.21250923]
[1773448083245,0.49567837,2088.5,2088.2,0.0011]
[1773448083426,0.49567837,2088.5,2088.0,5.00170172]
[1773448083622,0.49487837,2088.5,2087.9,0.0008]
[1773448083818,0.49487837,2088.5,2087.7,4.79083081]
[1773448084221,0.49999999,2088.4,2087.7,4.79083081]
[1773448084532,0.49999999,2088.4,2087.8,0.0478973]
[1773448085444,0.001,2088.7,2088.1,0.75197571]
[1773448085622,0.49999999,2088.6,2087.8,0.75197571]
[1773448086224,0.49999999,2088.6,2087.9,1.19737535]
[1773448086418,0.49999999,2088.6,2088.0,0.04789272]
[1773448089346,0.49999999,2088.6,2088.1,1.19726066]
[1773448089725,0.49999999,2089.3,2088.5,0.75197571]
[1773448089937,0.49999999,2089.3,2088.7,0.75197571]
[1773448090262,0.001,2089.4,2088.7,0.75197571]
[1773448090553,0.50099999,2089.9,2089.0,0.75197571]
[1773448090719,0.50099999,2089.9,2089.1,1.722]
[1773448091866,0.50099999,2089.9,2089.3,0.75197571]
[1773448092066,0.50099999,2089.9,2089.2,1.19663028]
[1773448092274,0.49999999,2089.8,2089.2,1.19663028]
[1773448094875,0.001,2089.9,2089.2,1.19663028]
[1773448096859,0.001,2089.7,2089.2,1.19663028]
[1773448097057,0.001,2089.9,2089.2,1.19663028]
[1773448099273,0.001,2089.9,2089.2,1.24449549]
[1773448100377,0.001,2089.9,2089.2,1.19663028]
[1773448107674,0.50099999,2089.9,2089.3,4.0]
[1773448108470,0.50099999,2089.9,2089.4,1.19651574]
[1773448110301,0.50099999,2089.9,2089.4,1.19761574]
[1773448110484,0.001,2089.7,2089.4,0.0011]
[1773448110648,0.001,2089.9,2089.4,0.0011]
[1773448112484,0.001,2089.9,2089.4,0.04896062]
[1773448113449,0.001,2089.9,2089.5,1.19645848]
[1773448113651,0.001,2089.9,2089.6,0.04785604]
[1773448114281,0.50099999,2089.9,2089.6,0.04785604]
[1773448118389,0.50099999,2089.9,2089.7,1.19634397]
[1773448119482,0.001,2089.9,2089.7,1.19634397]
[1773448120065,0.4619181,2090.5,2089.8,0.48546575]
[1773448120269,0.4619181,2090.5,2090.0,0.48546575]
[1773448122597,0.4619181,2090.5,2090.1,1.68158076]
[1773448123775,0.001,2090.3,2090.1,1.68158076]
[1773448123980,0.4619181,2090.5,2090.1,1.68158076]
[1773448132195,0.4619181,2090.5,2090.2,0.47033483]
[1773448132690,0.4619181,2090.5,2090.3,1.19600057]
[1773448134390,0.001,2090.7,2090.3,1.19600057]
[1773448134596,0.49754706,2090.7,2090.3,1.6663354]
[1773448135970,0.49654706,2090.6,2090.0,1.19612416]
[1773448136169,0.54438952,2090.6,2090.0,1.19612416]
[1773448137282,0.49654706,2090.4,2089.9,4.78471675]
[1773448137483,0.49654706,2090.4,2090.3,0.0011]
[1773448139370,0.54438952,2090.4,2090.3,0.0011]
[1773448142068,1.74033288,2090.4,2090.3,0.0011]
[1773448143494,0.49654706,2090.3,2090.0,0.0011]
[1773448143676,0.49654706,2090.3,2089.8,2.96735313]
[1773448144404,0.49654706,2090.2,2089.8,2.96735313]
[1773448145698,0.49654706,2090.2,2089.8,1.7711]
[1773448145902,0.49654706,2090.2,2089.8,2.96738196]
[1773448146206,0.49654706,2090.2,2089.9,0.47033483]
[1773448146914,0.49654706,2090.2,2089.8,3.43771679]
[1773448148190,1.74036912,2090.4,2089.9,0.47033483]
[1773448148402,0.49654706,2090.3,2090.0,1.19617224]
[1773448148717,0.04784246,2090.2,2090.0,1.19617224]
[1773448150318,0.04784246,2090.2,2090.0,1.19727224]
[1773448150704,0.001,2090.1,2090.0,1.19727224]
[1773448153919,0.49754706,2090.1,2090.0,0.0011]
[1773448156408,0.49754706,2090.1,2089.9,1.19618112]
[1773448161623,0.49754706,2090.1,2089.8,2.96737039]
[1773448162702,0.49754706,2090.1,2090.0,0.0011]
[1773448169313,0.001,2090.1,2090.0,0.0011]
[1773448171042,0.48987285,2090.1,2089.9,0.04784917]
[1773448171333,0.53672202,2090.0,2089.3,0.0011]
[1773448171624,0.04784917,2090.0,2089.6,0.48665562]
[1773448171795,0.001,2090.1,2089.8,0.48665562]
[1773448172419,0.001,2090.1,2089.8,0.51058578]
[1773448173122,1.73680063,2090.3,2089.9,0.48665562]
[1773448174041,1.73680063,2090.3,2089.9,1.68287066]
[1773448175100,1.73680063,2090.3,2090.1,0.0011]
[1773448175302,0.54079703,2090.3,2090.1,0.0011]
[1773448175520,0.48887285,2090.3,2090.1,0.0011]
[1773448179523,0.48887285,2090.4,2090.1,0.48775562]
[1773448180110,1.68472947,2090.6,2090.1,0.48775562]
[1773448180739,0.48887285,2090.5,2090.1,0.48775562]
[1773448182342,0.48887285,2090.5,2090.2,1.19605779]
[1773448183132,0.48887285,2090.5,2090.2,1.68271341]
[1773448184843,0.065536,2091.1,2090.5,0.48665562]
[1773448185009,0.48887285,2091.2,2090.5,0.48665562]
[1773448185216,0.51690292,2091.2,2090.5,0.48665562]
[1773448185550,4.7810493,2091.6,2090.8,0.48665562]
[1773448185551,0.46759518,2091.6,2090.8,0.48665562]
[1773448185843,1.66277548,2091.8,2091.0,0.48718493]
[1773448186033,0.46759518,2091.7,2091.0,0.48718493]
[1773448186611,0.49562525,2091.7,2091.1,0.48718493]
[1773448187442,0.46759518,2091.5,2091.1,0.48718493]
[1773448187617,0.49562525,2091.5,2091.1,0.48718493]
[1773448187811,0.49562525,2091.5,2091.0,2.15418493]
[1773448188012,0.001,2091.2,2091.0,2.15418493]
[1773448188548,0.001,2091.2,2091.0,3.34978401]
[1773448189216,0.001,2091.2,2091.1,0.48718493]
[1773448191142,0.001,2091.2,2091.0,1.667]
[1773448191333,0.49635207,2091.2,2091.0,2.86257933]
[1773448191740,0.001,2091.2,2091.0,2.86257933]
[1773448191931,0.001,2091.2,2091.0,3.31953648]
[1773448197159,1.69055369,2091.7,2091.1,0.50477887]
[1773448197332,1.71848188,2091.9,2091.2,0.45695715]
[1773448197532,0.49535207,2091.8,2091.2,0.45695715]
[1773448199479,0.49535207,2091.7,2091.3,1.65238583]
[1773448199632,0.49535207,2091.7,2091.1,1.19550435]
[1773448199944,0.49535207,2091.5,2091.1,1.6524615]
[1773448200261,0.52338214,2091.7,2091.2,0.45695715]
[1773448200464,0.52338214,2091.7,2091.2,0.50477658]
[1773448201449,0.49535207,2091.5,2091.0,1.667]
[1773448201761,0.002,2091.2,2091.0,2.91041607]
[1773448202065,0.49735207,2091.2,2091.0,1.667]
[1773448202366,0.49735207,2091.2,2091.0,2.86259763]
[1773448202565,0.49535207,2092.0,2091.2,0.45695715]
[1773448202735,0.49535207,2092.0,2091.4,0.45695715]
[1773448203761,1.7185154,2091.9,2091.5,0.45695715]
[1773448204466,1.19502868,2092.0,2091.5,0.45695715]
[1773448204866,0.52338214,2092.0,2091.5,0.45695715]
[1773448205042,0.02803007,2092.0,2091.5,0.45695715]
[1773448205236,1.19500066,2092.1,2091.5,0.45695715]
[1773448205875,0.49535207,2092.1,2091.7,0.45695715]
[1773448206249,0.02803007,2092.0,2091.7,0.45695715]